[Event "Titled Tuesday Blitz October 04 Late 2022"]
[White "Le, Tuan Minh"]
[Black "Bryakin, Mikhail"]
[WhiteFideId "12401153"]
[BlackFideId "4165314"]
[WhiteElo "2530"]
[BlackElo "2367"]
[Result "1/2-1/2"]
[Round "10"]
[TimeControl "180+1"]
[Date "2022.10.04"]
[WhiteClock "0:00:06"]
[BlackClock "0:00:08"]

1. d4 {[%clk 0:03:00]}  d5 {[%clk 0:02:59]} 2. Nf3 {[%clk 0:03:01]}  Nf6 {[%clk 0:02:58]} 3. Bf4 {[%clk 0:03:02]}  c5 {[%clk 0:02:59]} 4. c3 {[%clk 0:03:02]}  cxd4 {[%clk 0:02:55]} 5. cxd4 {[%clk 0:03:02]}  Nc6 {[%clk 0:02:53]} 6. Nc3 {[%clk 0:03:02]}  a6 {[%clk 0:02:45]} 7. Rc1 {[%clk 0:03:01]}  Bf5 {[%clk 0:02:41]} 8. e3 {[%clk 0:02:55]}  e6 {[%clk 0:02:40]} 9. Qb3 {[%clk 0:02:55]}  Bd6 {[%clk 0:02:39]} 10. Bg5 {[%clk 0:02:19]}  O-O {[%clk 0:02:26]} 11. Be2 {[%clk 0:02:15]}  Na5 {[%clk 0:02:22]} 12. Qd1 {[%clk 0:02:13]}  h6 {[%clk 0:02:20]} 13. Bh4 {[%clk 0:02:13]}  Rc8 {[%clk 0:02:20]} 14. O-O {[%clk 0:02:12]}  Nc4 {[%clk 0:02:11]} 15. b3 {[%clk 0:01:54]}  Na5 {[%clk 0:02:11]} 16. Bd3 {[%clk 0:01:53]}  Bxd3 {[%clk 0:01:57]} 17. Qxd3 {[%clk 0:01:53]}  Be7 {[%clk 0:01:55]} 18. Na4 {[%clk 0:01:27]}  Rxc1 {[%clk 0:01:40]} 19. Rxc1 {[%clk 0:01:28]}  Ne4 {[%clk 0:01:40]} 20. Bg3 {[%clk 0:01:22]}  Bd6 {[%clk 0:01:38]} 21. Nd2 {[%clk 0:01:06]}  Nxg3 {[%clk 0:01:35]} 22. hxg3 {[%clk 0:01:05]}  Qe7 {[%clk 0:01:27]} 23. Nc5 {[%clk 0:00:46]}  Rc8 {[%clk 0:01:27]} 24. b4 {[%clk 0:00:47]}  Nc6 {[%clk 0:01:23]} 25. a3 {[%clk 0:00:47]}  Nb8 {[%clk 0:01:22]} 26. Ndb3 {[%clk 0:00:44]}  h5 {[%clk 0:01:15]} 27. Rc2 {[%clk 0:00:33]}  g6 {[%clk 0:01:15]} 28. Qe2 {[%clk 0:00:26]}  h4 {[%clk 0:01:12]} 29. gxh4 {[%clk 0:00:26]}  Qxh4 {[%clk 0:01:12]} 30. g3 {[%clk 0:00:27]}  Qe7 {[%clk 0:01:12]} 31. Kg2 {[%clk 0:00:27]}  Rc7 {[%clk 0:00:44]} 32. Rc1 {[%clk 0:00:19]}  Nd7 {[%clk 0:00:41]} 33. Rh1 {[%clk 0:00:19]}  Nf6 {[%clk 0:00:34]} 34. Qf3 {[%clk 0:00:19]}  b6 {[%clk 0:00:26]} 35. Nd3 {[%clk 0:00:16]}  Rc3 {[%clk 0:00:27]} 36. Nbc1 {[%clk 0:00:12]}  Rxa3 {[%clk 0:00:21]} 37. g4 {[%clk 0:00:10]}  Ne4 {[%clk 0:00:20]} 38. Qh3 {[%clk 0:00:09]}  Qf6 {[%clk 0:00:21]} 39. f4 {[%clk 0:00:08]}  Rc3 {[%clk 0:00:17]} 40. g5 {[%clk 0:00:09]}  Qg7 {[%clk 0:00:18]} 41. Kf3 {[%clk 0:00:05]}  Rc2 {[%clk 0:00:18]} 42. Rh2 {[%clk 0:00:05]}  Rxh2 {[%clk 0:00:16]} 43. Qxh2 {[%clk 0:00:06]}  Qf8 {[%clk 0:00:16]} 44. Qa2 {[%clk 0:00:05]}  Qc8 {[%clk 0:00:16]} 45. Ne2 {[%clk 0:00:04]}  Kg7 {[%clk 0:00:15]} 46. Ne5 {[%clk 0:00:03]}  Bxe5 {[%clk 0:00:15]} 47. dxe5 {[%clk 0:00:04]}  Qc4 {[%clk 0:00:13]} 48. Qb2 {[%clk 0:00:04]}  a5 {[%clk 0:00:11]} 49. bxa5 {[%clk 0:00:05]}  bxa5 {[%clk 0:00:12]} 50. Qa1 {[%clk 0:00:03]}  a4 {[%clk 0:00:12]} 51. Qb2 {[%clk 0:00:04]}  Qb3 {[%clk 0:00:12]} 52. Qc1 {[%clk 0:00:04]}  a3 {[%clk 0:00:12]} 53. Nd4 {[%clk 0:00:05]}  Qd3 {[%clk 0:00:10]} 54. Nxe6+ {[%clk 0:00:03]}  fxe6 {[%clk 0:00:05]} 55. Qc7+ {[%clk 0:00:03]}  Kf8 {[%clk 0:00:06]} 56. Qd8+ {[%clk 0:00:03]}  Kf7 {[%clk 0:00:06]} 57. Qd7+ {[%clk 0:00:04]}  Kf8 {[%clk 0:00:07]} 58. Qd8+ {[%clk 0:00:05]}  Kf7 {[%clk 0:00:07]} 59. Qd7+ {[%clk 0:00:05]}  Kf8 {[%clk 0:00:08]} 60. Qd8+ {[%clk 0:00:06]} 1/2-1/2


[Site "https://www.chess.com"]

[Event "Titled Tuesday Blitz October 04 Late 2022"]
[White "Melkumyan, Hrant"]
[Black "Duda, Jan-Krzysztof"]
[WhiteFideId "13302485"]
[BlackFideId "1170546"]
[WhiteElo "2604"]
[BlackElo "2779"]
[Result "0-1"]
[Round "10"]
[TimeControl "180+1"]
[Date "2022.10.04"]
[WhiteClock "0:00:04"]
[BlackClock "0:00:14"]

1. Nf3 {[%clk 0:03:00]}  d5 {[%clk 0:02:58]} 2. e3 {[%clk 0:03:00]}  Nf6 {[%clk 0:02:57]} 3. c4 {[%clk 0:03:01]}  c6 {[%clk 0:02:56]} 4. Nc3 {[%clk 0:03:01]}  e6 {[%clk 0:02:53]} 5. b3 {[%clk 0:03:00]}  Bd6 {[%clk 0:02:51]} 6. Bb2 {[%clk 0:03:01]}  O-O {[%clk 0:02:51]} 7. Be2 {[%clk 0:03:01]}  b6 {[%clk 0:02:49]} 8. O-O {[%clk 0:02:57]}  Bb7 {[%clk 0:02:48]} 9. d4 {[%clk 0:02:55]}  Nbd7 {[%clk 0:02:48]} 10. Qc2 {[%clk 0:02:54]}  Qe7 {[%clk 0:02:47]} 11. Rad1 {[%clk 0:02:54]}  Rad8 {[%clk 0:02:46]} 12. Rfe1 {[%clk 0:02:54]}  Rfe8 {[%clk 0:02:47]} 13. e4 {[%clk 0:02:30]}  dxe4 {[%clk 0:02:46]} 14. Nxe4 {[%clk 0:02:31]}  Nxe4 {[%clk 0:02:46]} 15. Qxe4 {[%clk 0:02:32]}  Bb4 {[%clk 0:02:45]} 16. Rf1 {[%clk 0:02:30]}  Bd6 {[%clk 0:02:38]} 17. Rfe1 {[%clk 0:02:28]}  Nf6 {[%clk 0:02:35]} 18. Qh4 {[%clk 0:02:25]}  c5 {[%clk 0:02:29]} 19. Ne5 {[%clk 0:01:24]}  cxd4 {[%clk 0:02:26]} 20. Bxd4 {[%clk 0:01:23]}  Bb4 {[%clk 0:02:25]} 21. Rf1 {[%clk 0:01:22]}  h6 {[%clk 0:02:23]} 22. Bf3 {[%clk 0:01:21]}  Bxf3 {[%clk 0:02:16]} 23. Nxf3 {[%clk 0:01:21]}  Nd7 {[%clk 0:02:15]} 24. Qg3 {[%clk 0:00:59]}  f6 {[%clk 0:02:07]} 25. Be3 {[%clk 0:00:55]}  Kh7 {[%clk 0:02:00]} 26. Nd4 {[%clk 0:00:55]}  Nb8 {[%clk 0:01:45]} 27. Qf3 {[%clk 0:00:51]}  Bc5 {[%clk 0:01:29]} 28. Rfe1 {[%clk 0:00:44]}  Bxd4 {[%clk 0:01:28]} 29. Bxd4 {[%clk 0:00:42]}  e5 {[%clk 0:01:28]} 30. Be3 {[%clk 0:00:39]}  Qe6 {[%clk 0:01:27]} 31. Qe4+ {[%clk 0:00:31]}  f5 {[%clk 0:01:24]} 32. Qb1 {[%clk 0:00:28]}  Nc6 {[%clk 0:01:22]} 33. Bd2 {[%clk 0:00:20]}  Qg6 {[%clk 0:01:19]} 34. Bc3 {[%clk 0:00:20]}  e4 {[%clk 0:01:18]} 35. Rxd8 {[%clk 0:00:18]}  Rxd8 {[%clk 0:01:19]} 36. Rd1 {[%clk 0:00:19]}  f4 {[%clk 0:01:15]} 37. Rxd8 {[%clk 0:00:17]}  Nxd8 {[%clk 0:01:16]} 38. Qd1 {[%clk 0:00:12]}  f3 {[%clk 0:01:05]} 39. g3 {[%clk 0:00:12]}  Ne6 {[%clk 0:01:06]} 40. h4 {[%clk 0:00:10]}  Qg4 {[%clk 0:01:04]} 41. Kh2 {[%clk 0:00:10]}  Nf4 {[%clk 0:00:54]} 42. Qf1 {[%clk 0:00:03]}  Nd3 {[%clk 0:00:24]} 43. Bd2 {[%clk 0:00:03]}  Qd7 {[%clk 0:00:23]} 44. Be3 {[%clk 0:00:04]}  Ne5 {[%clk 0:00:24]} 45. Qb1 {[%clk 0:00:04]}  Ng4+ {[%clk 0:00:23]} 46. Kg1 {[%clk 0:00:04]}  Qf5 {[%clk 0:00:20]} 47. Qe1 {[%clk 0:00:04]}  Kh8 {[%clk 0:00:15]} 48. Bd2 {[%clk 0:00:04]}  Ne5 {[%clk 0:00:15]} 49. Be3 {[%clk 0:00:04]}  Qd7 {[%clk 0:00:14]} 50. Qd2 {[%clk 0:00:04]}  Qh3 {[%clk 0:00:14]} 0-1


[Site "https://www.chess.com"]

[Event "Titled Tuesday Blitz October 04 Late 2022"]
[White "Rustemov, Alexander"]
[Black "Janaszak, Dawid"]
[WhiteFideId "4119002"]
[BlackFideId "1119206"]
[WhiteElo "2774"]
[BlackElo "2226"]
[Result "1/2-1/2"]
[Round "10"]
[TimeControl "180+1"]
[Date "2022.10.04"]
[WhiteClock "0:00:03"]
[BlackClock "0:00:04"]

1. d4 {[%clk 0:03:00]}  e6 {[%clk 0:02:59]} 2. c4 {[%clk 0:03:00]}  c5 {[%clk 0:02:58]} 3. d5 {[%clk 0:02:59]}  exd5 {[%clk 0:02:59]} 4. cxd5 {[%clk 0:03:00]}  d6 {[%clk 0:02:59]} 5. Nc3 {[%clk 0:03:00]}  Nf6 {[%clk 0:02:59]} 6. e4 {[%clk 0:03:01]}  g6 {[%clk 0:02:57]} 7. Bd3 {[%clk 0:03:01]}  Bg7 {[%clk 0:02:57]} 8. h3 {[%clk 0:03:02]}  O-O {[%clk 0:02:56]} 9. Nf3 {[%clk 0:03:02]}  b5 {[%clk 0:02:49]} 10. Bxb5 {[%clk 0:03:02]}  Nxe4 {[%clk 0:02:45]} 11. Nxe4 {[%clk 0:03:03]}  Qa5+ {[%clk 0:02:45]} 12. Nfd2 {[%clk 0:03:03]}  Qxb5 {[%clk 0:02:43]} 13. Nxd6 {[%clk 0:03:03]}  Qa6 {[%clk 0:02:42]} 14. N2c4 {[%clk 0:03:04]}  Nd7 {[%clk 0:02:15]} 15. O-O {[%clk 0:03:04]}  Ne5 {[%clk 0:01:58]} 16. Nxc8 {[%clk 0:02:58]}  Raxc8 {[%clk 0:01:50]} 17. Nxe5 {[%clk 0:02:58]}  Bxe5 {[%clk 0:01:51]} 18. Re1 {[%clk 0:02:57]}  Bd4 {[%clk 0:01:44]} 19. Bg5 {[%clk 0:02:46]}  Bxb2 {[%clk 0:01:33]} 20. Rb1 {[%clk 0:02:45]}  Bd4 {[%clk 0:01:32]} 21. Be7 {[%clk 0:02:43]}  Qxa2 {[%clk 0:01:24]} 22. Re2 {[%clk 0:02:32]}  Qxd5 {[%clk 0:01:21]} 23. Bxf8 {[%clk 0:02:31]}  Rxf8 {[%clk 0:01:21]} 24. Qb3 {[%clk 0:02:10]}  Qf5 {[%clk 0:00:49]} 25. Rbe1 {[%clk 0:01:47]}  Kg7 {[%clk 0:00:46]} 26. g3 {[%clk 0:01:33]}  Qxh3 {[%clk 0:00:41]} 27. Re7 {[%clk 0:01:29]}  Qf5 {[%clk 0:00:35]} 28. R1e2 {[%clk 0:01:19]}  a6 {[%clk 0:00:35]} 29. Kg2 {[%clk 0:01:15]}  Qf6 {[%clk 0:00:35]} 30. Rb7 {[%clk 0:01:12]}  Qc6+ {[%clk 0:00:31]} 31. Kg1 {[%clk 0:01:08]}  c4 {[%clk 0:00:30]} 32. Qb1 {[%clk 0:01:03]}  Qf3 {[%clk 0:00:26]} 33. Qe4 {[%clk 0:00:40]}  Bxf2+ {[%clk 0:00:24]} 34. Kf1 {[%clk 0:00:38]}  Qxe4 {[%clk 0:00:21]} 35. Rxe4 {[%clk 0:00:38]}  Bxg3 {[%clk 0:00:19]} 36. Rxc4 {[%clk 0:00:38]}  h5 {[%clk 0:00:16]} 37. Kg2 {[%clk 0:00:37]}  h4 {[%clk 0:00:16]} 38. Rd4 {[%clk 0:00:28]}  g5 {[%clk 0:00:12]} 39. Rdd7 {[%clk 0:00:21]}  Kg6 {[%clk 0:00:12]} 40. Kh3 {[%clk 0:00:21]}  f6 {[%clk 0:00:11]} 41. Ra7 {[%clk 0:00:19]}  Re8 {[%clk 0:00:10]} 42. Rxa6 {[%clk 0:00:17]}  Re2 {[%clk 0:00:10]} 43. Kg4 {[%clk 0:00:16]}  Re4+ {[%clk 0:00:09]} 44. Kh3 {[%clk 0:00:15]}  g4+ {[%clk 0:00:09]} 45. Kg2 {[%clk 0:00:16]}  Re2+ {[%clk 0:00:09]} 46. Kf1 {[%clk 0:00:15]}  Rf2+ {[%clk 0:00:09]} 47. Kg1 {[%clk 0:00:16]}  h3 {[%clk 0:00:09]} 48. Ra1 {[%clk 0:00:14]}  f5 {[%clk 0:00:09]} 49. Kh1 {[%clk 0:00:14]}  f4 {[%clk 0:00:08]} 50. Rd5 {[%clk 0:00:13]}  Rh2+ {[%clk 0:00:06]} 51. Kg1 {[%clk 0:00:13]}  Rg2+ {[%clk 0:00:06]} 52. Kh1 {[%clk 0:00:14]}  Re2 {[%clk 0:00:06]} 53. Ra6+ {[%clk 0:00:13]}  Kf7 {[%clk 0:00:07]} 54. Rd7+ {[%clk 0:00:13]}  Ke8 {[%clk 0:00:05]} 55. Rd1 {[%clk 0:00:13]}  f3 {[%clk 0:00:05]} 56. Rb1 {[%clk 0:00:13]}  Bf4 {[%clk 0:00:03]} 57. Ra7 {[%clk 0:00:12]}  Re7 {[%clk 0:00:03]} 58. Rxe7+ {[%clk 0:00:09]}  Kxe7 {[%clk 0:00:04]} 59. Rb4 {[%clk 0:00:09]}  Be3 {[%clk 0:00:04]} 60. Rxg4 {[%clk 0:00:09]}  f2 {[%clk 0:00:04]} 61. Rf4 {[%clk 0:00:03]}  Bxf4 {[%clk 0:00:04]} 1/2-1/2


[Site "https://www.chess.com"]

[Event "Titled Tuesday Blitz October 04 Late 2022"]
[White "Vazquez, Guillermo"]
[Black "Morefield, Jason"]
[WhiteFideId "3702308"]
[BlackFideId "30920825"]
[WhiteElo "2543"]
[BlackElo "2171"]
[Result "1-0"]
[Round "10"]
[TimeControl "180+1"]
[Date "2022.10.04"]
[WhiteClock "0:00:10"]
[BlackClock "0:00:04"]

1. b3 {[%clk 0:02:58]}  d5 {[%clk 0:02:59]} 2. Bb2 {[%clk 0:02:59]}  Bf5 {[%clk 0:02:59]} 3. d3 {[%clk 0:02:58]}  Nf6 {[%clk 0:02:57]} 4. Nd2 {[%clk 0:02:59]}  c5 {[%clk 0:02:58]} 5. e4 {[%clk 0:02:56]}  dxe4 {[%clk 0:02:57]} 6. dxe4 {[%clk 0:02:57]}  Nxe4 {[%clk 0:02:57]} 7. Bd3 {[%clk 0:02:58]}  Nd6 {[%clk 0:02:58]} 8. Bxf5 {[%clk 0:02:57]}  Nxf5 {[%clk 0:02:58]} 9. Qf3 {[%clk 0:02:58]}  Qd7 {[%clk 0:02:54]} 10. O-O-O {[%clk 0:02:48]}  Nc6 {[%clk 0:02:36]} 11. Ne2 {[%clk 0:02:43]}  e6 {[%clk 0:02:29]} 12. Qg4 {[%clk 0:02:04]}  Nfd4 {[%clk 0:02:17]} 13. Nxd4 {[%clk 0:01:59]}  cxd4 {[%clk 0:02:17]} 14. Nf3 {[%clk 0:01:58]}  e5 {[%clk 0:01:56]} 15. Qxd7+ {[%clk 0:01:37]}  Kxd7 {[%clk 0:01:55]} 16. Nxe5+ {[%clk 0:01:37]}  Nxe5 {[%clk 0:01:52]} 17. Bxd4 {[%clk 0:01:36]}  Ke6 {[%clk 0:01:35]} 18. Rhe1 {[%clk 0:01:36]}  f6 {[%clk 0:01:34]} 19. f4 {[%clk 0:01:35]}  Bb4 {[%clk 0:01:09]} 20. c3 {[%clk 0:01:11]}  Bd6 {[%clk 0:01:00]} 21. Kc2 {[%clk 0:01:02]}  a5 {[%clk 0:00:58]} 22. a4 {[%clk 0:01:01]}  Rhf8 {[%clk 0:00:46]} 23. Re2 {[%clk 0:00:59]}  Rae8 {[%clk 0:00:40]} 24. fxe5 {[%clk 0:00:54]}  fxe5 {[%clk 0:00:40]} 25. Bb6 {[%clk 0:00:54]}  Ra8 {[%clk 0:00:35]} 26. Rd3 {[%clk 0:00:41]}  Ra6 {[%clk 0:00:28]} 27. Bd4 {[%clk 0:00:41]}  h5 {[%clk 0:00:25]} 28. Rg3 {[%clk 0:00:34]}  Kd5 {[%clk 0:00:23]} 29. Rg5 {[%clk 0:00:29]}  Re8 {[%clk 0:00:21]} 30. Rxh5 {[%clk 0:00:26]}  Rc6 {[%clk 0:00:20]} 31. Kd3 {[%clk 0:00:22]}  Rc7 {[%clk 0:00:12]} 32. c4+ {[%clk 0:00:20]}  Kc6 {[%clk 0:00:13]} 33. Bc3 {[%clk 0:00:16]}  b6 {[%clk 0:00:12]} 34. Kc2 {[%clk 0:00:14]}  Rce7 {[%clk 0:00:11]} 35. Rg5 {[%clk 0:00:12]}  Rf7 {[%clk 0:00:09]} 36. h4 {[%clk 0:00:12]}  Ref8 {[%clk 0:00:07]} 37. Bxe5 {[%clk 0:00:11]}  Re8 {[%clk 0:00:07]} 38. Rg6 {[%clk 0:00:07]}  Rd7 {[%clk 0:00:03]} 39. Kd3 {[%clk 0:00:08]}  Kc5 {[%clk 0:00:03]} 40. Bxd6+ {[%clk 0:00:08]}  Rxd6+ {[%clk 0:00:03]} 41. Rxd6 {[%clk 0:00:09]}  Rxe2 {[%clk 0:00:03]} 42. Kxe2 {[%clk 0:00:10]}  Kxd6 {[%clk 0:00:04]} 43. g4 {[%clk 0:00:10]} 1-0


[Site "https://www.chess.com"]

[Event "Titled Tuesday Blitz October 04 Late 2022"]
[White "Amburgy, Ryan"]
[Black "Turayev, Shahruh"]
[WhiteFideId "30924820"]
[BlackFideId "14003856"]
[WhiteElo "2121"]
[BlackElo "2610"]
[Result "0-1"]
[Round "11"]
[TimeControl "180+1"]
[Date "2022.10.04"]
[WhiteClock "0:01:27"]
[BlackClock "0:02:25"]

1. e4 {[%clk 0:03:00]}  e5 {[%clk 0:02:58]} 2. Ke2 {[%clk 0:03:01]}  Nc6 {[%clk 0:02:58]} 3. Nf3 {[%clk 0:03:01]}  f5 {[%clk 0:02:58]} 4. d3 {[%clk 0:03:00]}  Nf6 {[%clk 0:02:58]} 5. Nc3 {[%clk 0:03:00]}  Bb4 {[%clk 0:02:58]} 6. Bg5 {[%clk 0:02:41]}  Bxc3 {[%clk 0:02:54]} 7. bxc3 {[%clk 0:02:42]}  d6 {[%clk 0:02:54]} 8. exf5 {[%clk 0:02:38]}  Bxf5 {[%clk 0:02:51]} 9. Ke1 {[%clk 0:02:37]}  O-O {[%clk 0:02:50]} 10. Be2 {[%clk 0:02:37]}  Qe8 {[%clk 0:02:50]} 11. Qd2 {[%clk 0:02:32]}  e4 {[%clk 0:02:48]} 12. Nh4 {[%clk 0:02:27]}  exd3 {[%clk 0:02:45]} 13. Nxf5 {[%clk 0:02:25]}  dxe2 {[%clk 0:02:44]} 14. Bxf6 {[%clk 0:02:13]}  Rxf6 {[%clk 0:02:43]} 15. Ne3 {[%clk 0:02:14]}  Ne5 {[%clk 0:02:37]} 16. Qxe2 {[%clk 0:02:12]}  Qg6 {[%clk 0:02:35]} 17. Rd1 {[%clk 0:02:04]}  Raf8 {[%clk 0:02:34]} 18. f3 {[%clk 0:02:00]}  Re6 {[%clk 0:02:32]} 19. Rd4 {[%clk 0:01:55]}  Rfe8 {[%clk 0:02:30]} 20. Kd2 {[%clk 0:01:51]}  Qh6 {[%clk 0:02:29]} 21. Re1 {[%clk 0:01:32]}  Qxh2 {[%clk 0:02:27]} 22. Qb5 {[%clk 0:01:27]}  Nxf3+ {[%clk 0:02:25]} 0-1


[Site "https://www.chess.com"]

[Event "Titled Tuesday Blitz October 04 Late 2022"]
[White "Barria Zuniga, Daniel"]
[Black "Urazayev, Arystanbek"]
[WhiteFideId "3400816"]
[BlackFideId "13709810"]
[WhiteElo "2414"]
[BlackElo "2441"]
[Result "1-0"]
[Round "11"]
[TimeControl "180+1"]
[Date "2022.10.04"]
[WhiteClock "0:01:28"]
[BlackClock "0:00:02"]

1. d4 {[%clk 0:03:00]}  Nf6 {[%clk 0:02:59]} 2. c4 {[%clk 0:02:59]}  g6 {[%clk 0:02:59]} 3. Nc3 {[%clk 0:02:58]}  Bg7 {[%clk 0:03:00]} 4. e4 {[%clk 0:02:58]}  d6 {[%clk 0:03:00]} 5. Be2 {[%clk 0:02:57]}  O-O {[%clk 0:03:00]} 6. Nf3 {[%clk 0:02:57]}  e5 {[%clk 0:02:59]} 7. d5 {[%clk 0:02:57]}  a5 {[%clk 0:02:58]} 8. Bg5 {[%clk 0:02:57]}  Qe8 {[%clk 0:02:58]} 9. Nd2 {[%clk 0:02:56]}  Na6 {[%clk 0:02:52]} 10. O-O {[%clk 0:02:55]}  Nc5 {[%clk 0:02:51]} 11. b3 {[%clk 0:02:54]}  Bd7 {[%clk 0:02:51]} 12. a3 {[%clk 0:02:54]}  h6 {[%clk 0:02:10]} 13. Bh4 {[%clk 0:02:51]}  Nh7 {[%clk 0:02:03]} 14. Qc2 {[%clk 0:02:44]}  f5 {[%clk 0:02:00]} 15. f3 {[%clk 0:02:44]}  h5 {[%clk 0:01:52]} 16. b4 {[%clk 0:02:43]}  axb4 {[%clk 0:01:47]} 17. axb4 {[%clk 0:02:44]}  Na6 {[%clk 0:01:48]} 18. Rab1 {[%clk 0:02:30]}  Bh6 {[%clk 0:01:48]} 19. Bf2 {[%clk 0:02:29]}  Nf6 {[%clk 0:01:25]} 20. c5 {[%clk 0:02:28]}  fxe4 {[%clk 0:01:25]} 21. Ndxe4 {[%clk 0:02:22]}  Bf5 {[%clk 0:01:13]} 22. Bd3 {[%clk 0:02:14]}  Nxe4 {[%clk 0:01:13]} 23. fxe4 {[%clk 0:02:08]}  Bd7 {[%clk 0:01:06]} 24. c6 {[%clk 0:02:06]}  Bc8 {[%clk 0:00:57]} 25. b5 {[%clk 0:01:55]}  Nc5 {[%clk 0:00:45]} 26. Bxc5 {[%clk 0:01:55]}  dxc5 {[%clk 0:00:46]} 27. d6 {[%clk 0:01:56]}  bxc6 {[%clk 0:00:35]} 28. dxc7 {[%clk 0:01:50]}  cxb5 {[%clk 0:00:29]} 29. Bxb5 {[%clk 0:01:48]}  Rxf1+ {[%clk 0:00:14]} 30. Rxf1 {[%clk 0:01:49]}  Qe6 {[%clk 0:00:13]} 31. Qd3 {[%clk 0:01:42]}  Kh7 {[%clk 0:00:07]} 32. Bc4 {[%clk 0:01:39]}  Qe8 {[%clk 0:00:03]} 33. Nd5 {[%clk 0:01:35]}  Kh8 {[%clk 0:00:04]} 34. Nb6 {[%clk 0:01:33]}  Ra7 {[%clk 0:00:01]} 35. Qd8 {[%clk 0:01:32]}  Be3+ {[%clk 0:00:01]} 36. Kh1 {[%clk 0:01:31]}  Bd7 {[%clk 0:00:02]} 37. Nxd7 {[%clk 0:01:30]}  Ra8 {[%clk 0:00:03]} 38. Nb8 {[%clk 0:01:29]}  Qxd8 {[%clk 0:00:02]} 39. cxd8=Q+ {[%clk 0:01:28]} 1-0


[Site "https://www.chess.com"]

[Event "Titled Tuesday Blitz October 04 Late 2022"]
[White "Bluebaum, Matthias"]
[Black "Nepomniachtchi, Ian"]
[WhiteFideId "24651516"]
[BlackFideId "4168119"]
[WhiteElo "2633"]
[BlackElo "2781"]
[Result "1-0"]
[Round "11"]
[TimeControl "180+1"]
[Date "2022.10.04"]
[WhiteClock "0:00:16"]
[BlackClock "0:00:29"]

1. d4 {[%clk 0:03:00]}  Nf6 {[%clk 0:02:59]} 2. c4 {[%clk 0:03:01]}  e6 {[%clk 0:03:00]} 3. Nc3 {[%clk 0:03:01]}  Bb4 {[%clk 0:03:00]} 4. e3 {[%clk 0:03:02]}  c5 {[%clk 0:02:59]} 5. Bd3 {[%clk 0:02:59]}  d5 {[%clk 0:02:54]} 6. cxd5 {[%clk 0:02:55]}  exd5 {[%clk 0:02:55]} 7. a3 {[%clk 0:02:47]}  Ba5 {[%clk 0:02:53]} 8. dxc5 {[%clk 0:02:43]}  Bxc3+ {[%clk 0:02:53]} 9. bxc3 {[%clk 0:02:44]}  Nbd7 {[%clk 0:02:52]} 10. Ne2 {[%clk 0:02:30]}  Nxc5 {[%clk 0:02:52]} 11. O-O {[%clk 0:02:28]}  O-O {[%clk 0:02:52]} 12. c4 {[%clk 0:02:13]}  b6 {[%clk 0:02:48]} 13. cxd5 {[%clk 0:02:06]}  Qxd5 {[%clk 0:02:46]} 14. Nf4 {[%clk 0:02:06]}  Qg5 {[%clk 0:02:43]} 15. Bb2 {[%clk 0:01:44]}  Bb7 {[%clk 0:02:41]} 16. Bc2 {[%clk 0:01:34]}  Rad8 {[%clk 0:02:38]} 17. Qc1 {[%clk 0:00:45]}  Ne6 {[%clk 0:02:35]} 18. f3 {[%clk 0:00:45]}  Rc8 {[%clk 0:02:23]} 19. Nxe6 {[%clk 0:00:40]}  fxe6 {[%clk 0:02:24]} 20. Qd2 {[%clk 0:00:40]}  Rfd8 {[%clk 0:02:12]} 21. Qf2 {[%clk 0:00:40]}  Nd5 {[%clk 0:02:06]} 22. Bb3 {[%clk 0:00:41]}  Kh8 {[%clk 0:01:49]} 23. Rfe1 {[%clk 0:00:39]}  Rf8 {[%clk 0:01:43]} 24. Qg3 {[%clk 0:00:39]}  Qh6 {[%clk 0:01:31]} 25. Rad1 {[%clk 0:00:39]}  Rf5 {[%clk 0:01:28]} 26. f4 {[%clk 0:00:31]}  Rh5 {[%clk 0:01:16]} 27. e4 {[%clk 0:00:21]}  Nxf4 {[%clk 0:01:02]} 28. Rd7 {[%clk 0:00:20]}  Rg5 {[%clk 0:01:02]} 29. Qxf4 {[%clk 0:00:21]}  Rxg2+ {[%clk 0:01:02]} 30. Kxg2 {[%clk 0:00:22]}  Rc2+ {[%clk 0:00:29]} 31. Bxc2 {[%clk 0:00:15]}  Qxf4 {[%clk 0:00:29]} 32. Rd8+ {[%clk 0:00:16]} 1-0


[Site "https://www.chess.com"]

[Event "Titled Tuesday Blitz October 04 Late 2022"]
[White "Bryakin, Mikhail"]
[Black "Ibarra Jerez, Jose Carlos"]
[WhiteFideId "4165314"]
[BlackFideId "2226332"]
[WhiteElo "2367"]
[BlackElo "2627"]
[Result "0-1"]
[Round "11"]
[TimeControl "180+1"]
[Date "2022.10.04"]
[WhiteClock "0:01:43"]
[BlackClock "0:01:19"]

1. d4 {[%clk 0:02:57]}  d6 {[%clk 0:02:58]} 2. Nf3 {[%clk 0:02:56]}  g6 {[%clk 0:02:57]} 3. c4 {[%clk 0:02:55]}  Bg7 {[%clk 0:02:57]} 4. Nc3 {[%clk 0:02:54]}  e5 {[%clk 0:02:58]} 5. g3 {[%clk 0:02:52]}  exd4 {[%clk 0:02:55]} 6. Nxd4 {[%clk 0:02:52]}  Ne7 {[%clk 0:02:56]} 7. Bg2 {[%clk 0:02:52]}  Nbc6 {[%clk 0:02:53]} 8. e3 {[%clk 0:02:51]}  O-O {[%clk 0:02:49]} 9. O-O {[%clk 0:02:51]}  Nxd4 {[%clk 0:02:41]} 10. exd4 {[%clk 0:02:52]}  Nf5 {[%clk 0:02:42]} 11. d5 {[%clk 0:02:46]}  Re8 {[%clk 0:02:39]} 12. Qd3 {[%clk 0:02:38]}  Bd7 {[%clk 0:02:27]} 13. Bf4 {[%clk 0:02:26]}  Qf6 {[%clk 0:02:20]} 14. Rfe1 {[%clk 0:02:22]}  Qd4 {[%clk 0:02:16]} 15. Bf1 {[%clk 0:02:11]}  Qxd3 {[%clk 0:02:12]} 16. Bxd3 {[%clk 0:02:12]}  Nd4 {[%clk 0:02:12]} 17. Kg2 {[%clk 0:02:09]}  Bg4 {[%clk 0:02:12]} 18. h3 {[%clk 0:02:05]}  Bf3+ {[%clk 0:02:10]} 19. Kf1 {[%clk 0:02:05]}  a6 {[%clk 0:02:03]} 20. Rxe8+ {[%clk 0:02:04]}  Rxe8 {[%clk 0:02:03]} 21. Re1 {[%clk 0:02:04]}  Bg2+ {[%clk 0:02:00]} 22. Kxg2 {[%clk 0:02:02]}  Rxe1 {[%clk 0:02:01]} 23. Bd2 {[%clk 0:02:01]}  Ra1 {[%clk 0:01:47]} 24. f4 {[%clk 0:01:55]}  b5 {[%clk 0:01:46]} 25. cxb5 {[%clk 0:01:54]}  Nxb5 {[%clk 0:01:42]} 26. Nxb5 {[%clk 0:01:46]}  axb5 {[%clk 0:01:40]} 27. a3 {[%clk 0:01:43]}  Rd1 {[%clk 0:01:19]} 0-1


[Site "https://www.chess.com"]

[Event "Titled Tuesday Blitz October 04 Late 2022"]
[White "Duda, Jan-Krzysztof"]
[Black "Nakamura, Hikaru"]
[WhiteFideId "1170546"]
[BlackFideId "2016192"]
[WhiteElo "2779"]
[BlackElo "2909"]
[Result "1/2-1/2"]
[Round "11"]
[TimeControl "180+1"]
[Date "2022.10.04"]
[WhiteClock "0:03:02"]
[BlackClock "0:03:01"]

1. e4 {[%clk 0:03:00]}  e5 {[%clk 0:02:59]} 2. Nf3 {[%clk 0:03:01]}  Nc6 {[%clk 0:03:00]} 3. Bb5 {[%clk 0:03:01]}  Nf6 {[%clk 0:03:00]} 4. O-O {[%clk 0:03:01]}  Nxe4 {[%clk 0:03:01]} 5. d4 {[%clk 0:03:01]}  Nd6 {[%clk 0:03:01]} 6. Bxc6 {[%clk 0:03:02]}  dxc6 {[%clk 0:03:02]} 7. dxe5 {[%clk 0:03:03]}  Nf5 {[%clk 0:03:02]} 8. Qxd8+ {[%clk 0:03:03]}  Kxd8 {[%clk 0:03:03]} 9. h3 {[%clk 0:03:03]}  Bd7 {[%clk 0:03:03]} 10. Nc3 {[%clk 0:03:02]}  h6 {[%clk 0:03:01]} 1/2-1/2


[Site "https://www.chess.com"]